bitfinex/quotes_SOLUSD_20250811
["timestamp","ask_amount","ask_price","bid_price","bid_amount"]
[1754934767118,5.99660053,178.27,178.26,0.71]
[1754934767315,5.99660053,178.28,178.26,0.71]
[1754934767501,0.56066382,178.29,178.27,0.71]
[1754934767695,5.99660053,178.28,178.24,89.75]
[1754934767919,5.99660053,178.28,178.25,0.71]
[1754934768100,5.99660053,178.28,178.26,0.71]
[1754934768301,5.99660053,178.27,178.26,0.71]
[1754934769533,5.99660053,178.28,178.26,0.71]
[1754934769701,5.99660053,178.28,178.27,0.71]
[1754934770034,5.99660053,178.28,178.27,90.46]
[1754934771623,5.99660053,178.29,178.27,90.46]
[1754934772128,5.99660053,178.29,178.28,0.71]
[1754934772325,6.16921462,178.3,178.28,90.46]
[1754934772513,5.99660053,178.29,178.28,90.46]
[1754934772820,5.99660053,178.29,178.28,89.75]
[1754934773129,0.56066382,178.3,178.28,90.46]
[1754934773307,5.99660053,178.33,178.29,0.71]
[1754934773629,0.56066382,178.32,178.29,90.46]
[1754934773830,6.55726435,178.32,178.3,0.71]
[1754934774228,0.56066382,178.34,178.31,0.71]
[1754934774419,0.56066382,178.34,178.32,0.71]
[1754934774731,6.55726435,178.34,178.32,0.71]
[1754934775035,0.03,178.33,178.32,0.71]
[1754934776510,6.02660053,178.33,178.3,0.71]
[1754934776910,6.55726435,178.32,178.3,0.71]
[1754934777320,0.56066382,178.32,178.31,0.71]
[1754934777629,0.59066382,178.33,178.31,0.71]
[1754934777840,0.03,178.33,178.31,96.45660053]
[1754934778133,0.03,178.33,178.32,0.71]
[1754934778338,0.03,178.33,178.32,90.46]
[1754934778709,0.03,178.33,178.32,96.45660053]
[1754934778924,0.03,178.33,178.32,90.46]
[1754934780321,0.03,178.33,178.32,102.06449644]
[1754934780503,0.03,178.33,178.32,142.42449644]
[1754934780837,0.03,178.36,178.32,92.69423623]
[1754934781015,0.03,178.36,178.35,5.99660053]
[1754934781215,0.03,178.36,178.35,45.96695262]
[1754934781533,0.03,178.36,178.35,6.31695262]
[1754934781738,0.03,178.36,178.35,41.07]
[1754934782611,0.03,178.36,178.35,46.67695262]
[1754934782809,0.03,178.36,178.35,52.67355315]
[1754934784034,0.03,178.36,178.35,41.07]
[1754934785429,0.03,178.36,178.35,47.06660053]
[1754934787839,0.03,178.36,178.35,41.07]
[1754934788143,0.03,178.36,178.35,47.06660053]
[1754934788316,0.03,178.36,178.35,41.07]
[1754934790729,0.03,178.36,178.35,130.82]
[1754934793543,0.03,178.36,178.35,90.46]
[1754934793740,0.03,178.36,178.35,130.78]
[1754934795841,0.03,178.36,178.35,89.75]
[1754934796024,0.03,178.36,178.35,90.46]
[1754934796224,0.03,178.36,178.35,130.78]
[1754934797228,0.03,178.36,178.35,130.07]
[1754934798040,6.02660053,178.36,178.35,89.75]
[1754934798244,0.03,178.36,178.35,89.75]
[1754934798746,22.35347992,178.36,178.33,0.06]
[1754934799047,5.99660053,178.34,178.33,0.06]
[1754934799434,5.99660053,178.35,178.33,0.06]
[1754934800047,5.99660053,178.34,178.33,0.06]
[1754934800244,6.85748251,178.36,178.33,0.06]
[1754934800545,0.03,178.36,178.33,0.06]
[1754934801051,6.58726435,178.36,178.33,0.06]
[1754934801751,5.99660053,178.35,178.33,0.06]
[1754934805361,6.85736497,178.36,178.33,0.06]
[1754934805530,5.99660053,178.34,178.33,89.81]
[1754934805730,6.65660053,178.34,178.33,89.81]
[1754934806326,0.66,178.34,178.33,0.06]
[1754934806532,21.7628161,178.34,178.33,0.06]
[1754934806962,27.37008311,178.34,178.33,0.06]
[1754934808357,21.37348258,178.34,178.33,0.06]
[1754934808540,27.37008311,178.34,178.33,0.06]
[1754934810562,26.71008311,178.34,178.33,0.06]
[1754934810867,5.99660053,178.34,178.33,0.06]
[1754934811169,6.55726435,178.34,178.33,0.06]
[1754934811869,22.32347992,178.34,178.33,0.06]
[1754934812449,27.93074693,178.34,178.33,0.06]
[1754934813248,27.27074693,178.34,178.33,0.06]
[1754934813664,6.16793083,178.34,178.33,0.06]
[1754934813864,12.16453136,178.34,178.33,0.06]
[1754934815976,12.84453136,178.34,178.33,0.06]
[1754934816471,12.16453136,178.34,178.33,0.06]
[1754934818163,12.19453136,178.34,178.33,0.06]
[1754934819562,6.58726435,178.34,178.33,0.73]
[1754934820257,12.19453136,178.34,178.33,0.06]
[1754934821483,0.03,178.34,178.33,0.73]
[1754934822179,21.69347992,178.34,178.33,0.06]
[1754934822683,6.58726435,178.34,178.33,0.06]
[1754934823775,0.03,178.34,178.33,0.73]
[1754934825280,0.03,178.34,178.33,6.72660053]
[1754934825576,0.03,178.34,178.33,0.73]
[1754934825969,0.03,178.34,178.33,6.72660053]
[1754934826369,0.03,178.34,178.33,0.73]
[1754934827281,0.03,178.34,178.33,96.47660053]
[1754934827482,0.03,178.36,178.35,31.99660053]
[1754934827791,0.03,178.36,178.35,72.25660053]
[1754934827969,0.03,178.38,178.35,72.92660053]
[1754934828174,0.03,178.38,178.37,5.99660053]
[1754934828573,0.03,178.38,178.37,11.60292446]
[1754934828769,0.03,178.38,178.37,12.27292446]
[1754934830460,0.03,178.38,178.37,6.27632393]
[1754934830686,0.03,178.38,178.37,12.27292446]
[1754934832169,0.03,178.38,178.37,52.51292446]
[1754934833987,0.03,178.38,178.37,54.75727846]
[1754934835192,0.03,178.44,178.42,89.63]
[1754934835492,0.03,178.44,178.42,135.86660053]
[1754934835687,0.03,178.44,178.42,136.53660053]
[1754934836782,0.03,178.44,178.42,142.14135336]
[1754934837286,0.03,178.44,178.42,168.14135336]
[1754934837490,0.03,178.44,178.42,142.14135336]
[1754934837692,0.03,178.44,178.42,144.38507836]
[1754934838885,0.03,178.48,178.45,26.0]
[1754934839087,0.03,178.48,178.45,161.84660053]
[1754934839398,0.03,178.48,178.45,162.51660053]
[1754934839604,0.03,178.47,178.45,162.51660053]
[1754934840485,0.03,178.47,178.46,89.6]
[1754934840686,0.03,178.47,178.46,95.59660053]
[1754934840890,0.03,178.47,178.46,101.87009711]
[1754934841193,0.03,178.48,178.46,106.84680363]
[1754934841515,1e-08,178.5,178.48,25.10621557]
[1754934841675,0.2,178.52,178.5,15.10621557]
[1754934841876,0.03,178.59,178.51,46.75679323]
[1754934842090,0.03,178.59,178.52,5.99660053]
[1754934842395,0.03,178.59,178.52,6.66660053]
[1754934842572,0.03,178.59,178.52,6.65660053]
[1754934842771,0.03,178.59,178.54,26.0]
[1754934842999,0.03,178.59,178.54,161.79660053]
[1754934843199,0.03,178.59,178.54,162.45660053]
[1754934844886,0.03,178.59,178.54,168.0575863]
[1754934845477,0.03,178.59,178.54,170.2998013]
[1754934846581,0.03,178.59,178.55,89.57]
[1754934846898,0.03,178.59,178.56,46.17660053]
[1754934847285,0.03,178.59,178.55,89.57]
[1754934847485,0.71,178.57,178.56,40.18]
[1754934847797,0.68,178.56,178.55,89.57]
[1754934847993,6.67660053,178.56,178.55,89.57]
[1754934848497,6.67660053,178.56,178.54,40.18]
[1754934848671,0.03,178.57,178.52,89.57]
[1754934848672,6.67660053,178.55,178.52,89.57]
[1754934848878,0.68,178.54,178.53,40.18]
[1754934849297,6.67660053,178.56,178.53,40.18]
[1754934849499,0.68,178.55,178.53,40.18]
[1754934849701,0.68,178.54,178.53,40.18]
[1754934850299,6.67660053,178.56,178.53,40.18]
[1754934850596,0.68,178.55,178.53,40.18]
[1754934850813,6.02660053,178.57,178.53,40.18]
[1754934850980,0.68,178.56,178.53,40.18]
[1754934851287,0.68,178.55,178.53,40.18]
[1754934852793,0.68,178.55,178.53,129.75]
[1754934853001,0.68,178.54,178.53,129.75]
[1754934853585,5.99660053,178.56,178.53,129.75]
[1754934853779,6.67660053,178.56,178.53,129.75]
[1754934854106,5.99660053,178.54,178.53,89.57]
[1754934854310,6.67660053,178.54,178.53,89.57]
[1754934855507,0.68,178.54,178.53,89.57]
[1754934855806,5.99660053,178.55,178.53,89.57]
[1754934856806,6.67660053,178.55,178.53,89.57]
[1754934857497,5.99660053,178.54,178.53,89.57]
[1754934858806,0.68,178.55,178.53,89.57]
[1754934859009,6.02660053,178.57,178.53,129.73]
[1754934859191,0.03,178.57,178.53,130.39]
[1754934859388,5.99660053,178.56,178.53,130.39]
[1754934859803,5.99660053,178.56,178.53,129.73]
[1754934859804,5.99660053,178.55,178.53,129.73]
[1754934860696,5.99660053,178.54,178.53,129.73]
[1754934861015,5.99660053,178.55,178.53,129.73]
[1754934862298,5.99660053,178.55,178.53,129.79]
[1754934862494,6.02660053,178.55,178.53,129.79]
[1754934863410,6.02660053,178.55,178.53,89.63]
[1754934863411,5.99660053,178.54,178.53,89.63]
[1754934863715,22.34347992,178.54,178.53,89.63]
[1754934865094,27.94446569,178.54,178.53,89.63]
[1754934867621,27.94446569,178.54,178.53,0.06]
[1754934869222,27.26446569,178.54,178.53,0.06]
[1754934869997,27.94446569,178.54,178.53,0.06]
[1754934871315,27.26446569,178.54,178.53,0.06]
[1754934871721,21.26786516,178.54,178.53,0.06]
[1754934872026,27.26446569,178.54,178.53,0.06]
[1754934872426,21.26786516,178.54,178.53,0.72]
[1754934872717,12.15825012,178.54,178.53,0.06]
[1754934872916,5.99660053,178.54,178.53,0.06]
[1754934873498,11.5975863,178.54,178.53,0.06]
[1754934874232,11.7575863,178.54,178.53,0.06]
[1754934874704,26.86380187,178.54,178.53,0.06]
[1754934875508,26.70380187,178.54,178.53,0.06]
[1754934875808,11.5975863,178.54,178.53,0.06]
[1754934878115,26.86380187,178.54,178.53,0.06]
[1754934878820,52.86380187,178.54,178.53,0.06]
[1754934880527,15.10621557,178.51,178.49,89.63]
[1754934880837,6.55726435,178.5,178.49,0.06]
[1754934882632,12.15950524,178.5,178.49,0.06]
[1754934882835,33.26232134,178.5,178.49,0.06]
[1754934883726,33.59232134,178.5,178.49,0.06]
[1754934884121,26.0,178.48,178.47,0.06]
[1754934884343,26.0,178.48,178.43,89.63]
[1754934884344,15.10621557,178.47,178.43,0.06]
[1754934884651,5.99660053,178.44,178.43,0.06]
[1754934885947,46.76660053,178.44,178.43,0.06]
[1754934886131,51.70072516,178.44,178.43,0.06]
[1754934886336,51.70072516,178.44,178.43,0.74]
[1754934888451,51.70072516,178.44,178.43,0.06]
[1754934890237,51.70072516,178.44,178.43,0.74]
[1754934890436,5.60387615,178.45,178.43,0.74]
[1754934890628,11.60047668,178.45,178.43,0.74]
[1754934890834,5.60387615,178.45,178.43,0.06]
[1754934891039,5.99660053,178.44,178.43,0.06]
[1754934891334,5.99660053,178.44,178.43,89.63]
[1754934891656,11.60047668,178.45,178.43,89.63]
[1754934891833,11.60047668,178.45,178.44,0.68]
[1754934892550,11.60047668,178.45,178.43,89.63]
[1754934892754,46.65726435,178.44,178.43,89.63]
[1754934893737,52.26138898,178.44,178.43,89.63]
[1754934895566,52.93138898,178.44,178.43,89.63]
[1754934895743,52.26138898,178.44,178.43,89.63]
[1754934897239,52.26138898,178.44,178.43,0.06]
[1754934897957,12.16138898,178.44,178.43,0.06]
[1754934898130,52.26138898,178.44,178.43,0.06]
[1754934898330,12.16138898,178.44,178.43,0.06]
[1754934898547,52.26138898,178.44,178.43,0.06]
[1754934900960,46.26478845,178.44,178.43,0.06]
[1754934901144,46.09660053,178.44,178.43,0.74]
[1754934901342,5.99660053,178.44,178.43,0.74]
[1754934902356,6.16423407,178.46,178.43,0.74]
[1754934902550,46.09660053,178.46,178.43,0.74]
[1754934902755,5.99660053,178.46,178.43,0.74]
[1754934902936,17.60821919,178.47,178.43,90.31]
[1754934903143,17.60821919,178.47,178.44,6.66660053]
[1754934903451,23.21147097,178.47,178.45,0.67]
[1754934904373,17.60821919,178.47,178.46,0.67]
[1754934907135,23.60481972,178.47,178.46,0.67]
[1754934908734,17.60821919,178.47,178.46,0.67]
[1754934912060,17.60821919,178.47,178.46,90.24]
[1754934914353,17.60821919,178.47,178.46,89.57]
[1754934915171,23.60481972,178.47,178.46,89.57]
[1754934915857,17.60821919,178.47,178.46,89.57]
[1754934916058,23.60481972,178.47,178.46,90.24]
[1754934919849,17.60821919,178.47,178.46,90.24]
[1754934920673,17.60821919,178.47,178.46,96.23660053]
[1754934920973,23.60481972,178.47,178.46,90.24]
[1754934921176,23.60481972,178.47,178.46,89.57]
[1754934922073,29.20800232,178.47,178.46,89.57]
[1754934922772,15.10621557,178.46,178.43,0.06]
[1754934922978,5.99660053,178.44,178.43,0.06]
[1754934923366,27.39694073,178.44,178.43,0.06]
[1754934923774,53.39694073,178.44,178.43,0.06]
[1754934923974,53.39694073,178.44,178.42,0.06]
[1754934924171,41.29066382,178.43,178.42,0.06]
[1754934924394,47.28726435,178.43,178.42,0.06]
[1754934924560,55.70687939,178.43,178.42,0.06]
[1754934924990,61.70347992,178.43,178.42,0.06]
[1754934925573,67.30791863,178.43,178.42,0.06]
[1754934926177,67.99791863,178.43,178.42,0.06]
[1754934927387,67.30791863,178.43,178.42,0.06]
[1754934927566,51.64103924,178.43,178.42,0.06]
[1754934928189,52.33103924,178.43,178.42,0.06]
[1754934928380,51.64103924,178.43,178.42,0.06]
[1754934928792,46.03660053,178.43,178.42,0.06]
[1754934929089,40.04,178.44,178.42,0.73]
[1754934929399,40.04,178.45,178.43,0.67]
[1754934929589,45.64386783,178.45,178.43,0.67]
[1754934930365,23.24145342,178.47,178.44,0.67]
[1754934930672,17.63821919,178.47,178.44,0.67]
[1754934930978,5.99660053,178.46,178.44,0.67]
[1754934931187,5.99660053,178.45,178.42,0.73]
[1754934931484,5.99660053,178.44,178.42,0.73]
[1754934932086,5.99660053,178.43,178.42,0.73]
[1754934932291,5.99660053,178.44,178.42,0.73]
[1754934932802,23.63481972,178.47,178.43,6.67660053]
[1754934933097,23.63481972,178.47,178.44,0.68]
[1754934933307,23.63481972,178.47,178.45,0.68]
[1754934933507,17.63821919,178.47,178.45,6.67660053]
[1754934933673,17.63821919,178.47,178.46,0.68]
[1754934936489,29.89800232,178.47,178.42,90.64]
[1754934936788,5.99660053,178.45,178.42,89.96]
[1754934936976,5.99660053,178.46,178.43,0.68]
[1754934937182,5.99660053,178.45,178.43,0.68]
[1754934937379,5.99660053,178.45,178.42,89.96]
[1754934937580,5.60356668,178.46,178.43,0.68]
[1754934937783,5.99660053,178.45,178.42,89.96]
[1754934937977,5.99660053,178.45,178.42,90.64]
[1754934938200,6.1642305,178.46,178.42,89.96]
[1754934938393,5.99660053,178.43,178.42,89.96]
[1754934939275,5.99660053,178.45,178.42,90.64]
[1754934939476,5.99660053,178.45,178.43,0.68]
[1754934941193,11.60016721,178.46,178.44,0.68]
[1754934941575,23.63481972,178.47,178.45,0.68]
[1754934941783,23.63481972,178.47,178.46,0.68]
[1754934941982,23.63481972,178.47,178.45,89.9]
[1754934942177,23.63481972,178.47,178.45,90.58]
[1754934942593,17.63821919,178.47,178.46,0.68]
[1754934944193,17.63821919,178.47,178.46,96.57660053]
[1754934946103,17.63821919,178.47,178.46,136.57660053]
[1754934946306,17.63821919,178.47,178.46,130.58]
[1754934946601,17.63821919,178.47,178.46,136.57660053]
[1754934947185,17.63821919,178.47,178.46,130.58]
[1754934947594,17.63821919,178.47,178.46,136.57660053]
[1754934947799,17.63821919,178.47,178.46,130.58]
[1754934949409,17.63821919,178.47,178.46,89.9]
[1754934949593,29.23800232,178.47,178.46,89.9]
[1754934949791,23.63481972,178.47,178.46,89.9]
[1754934950192,29.23800232,178.47,178.46,89.9]
[1754934950407,23.63481972,178.47,178.46,89.9]
[1754934951112,17.63821919,178.47,178.46,89.9]
[1754934951311,23.63481972,178.47,178.46,89.9]
[1754934951496,17.63821919,178.47,178.46,89.9]
[1754934951697,23.63481972,178.47,178.46,89.9]
[1754934951896,17.63821919,178.47,178.46,89.9]
[1754934952092,23.63481972,178.47,178.46,89.9]
[1754934952596,17.63821919,178.47,178.46,89.9]
[1754934952784,17.63821919,178.47,178.46,90.58]
[1754934952990,17.63821919,178.47,178.46,130.56]
[1754934953896,17.63821919,178.47,178.46,136.16349658]
[1754934954414,17.63821919,178.47,178.46,130.56]
[1754934954590,23.63481972,178.47,178.46,129.88]
[1754934954791,29.23800232,178.47,178.46,129.88]
[1754934954995,29.89800232,178.47,178.46,89.9]
[1754934955790,17.63821919,178.47,178.46,89.9]
[1754934956091,29.23800232,178.47,178.46,89.9]
[1754934956416,29.89800232,178.47,178.46,89.9]
[1754934956588,23.63481972,178.47,178.46,89.9]
[1754934957994,17.63821919,178.47,178.46,89.9]
[1754934958392,17.63821919,178.47,178.46,90.58]
[1754934958791,17.63821919,178.47,178.46,96.57660053]
[1754934959014,17.63821919,178.47,178.46,90.58]
[1754934959914,23.63481972,178.47,178.46,89.9]
[1754934960114,29.23800232,178.47,178.46,89.9]
[1754934960415,29.89800232,178.47,178.46,89.9]
[1754934960615,69.87800232,178.47,178.46,89.9]
[1754934961501,17.63821919,178.47,178.46,90.58]
[1754934964028,17.63821919,178.47,178.46,89.9]
[1754934964326,23.63481972,178.47,178.46,89.9]
[1754934964910,29.23800232,178.47,178.46,89.9]
[1754934966000,29.23800232,178.47,178.44,39.98]
[1754934966200,5.99660053,178.45,178.44,39.98]
[1754934966621,5.99660053,178.46,178.44,39.98]
[1754934966818,23.24140179,178.47,178.44,39.98]
[1754934967006,5.99660053,178.46,178.44,39.98]
[1754934967239,5.99660053,178.45,178.44,39.98]
[1754934967407,5.99660053,178.45,178.42,89.96]
[1754934967602,5.99660053,178.43,178.42,129.92]
[1754934967824,0.71,178.45,178.42,0.06]
[1754934968124,5.99660053,178.43,178.42,0.75]
[1754934968324,5.99660053,178.43,178.42,0.06]
[1754934969411,5.99660053,178.44,178.42,0.75]
[1754934970128,5.60381059,178.45,178.42,0.75]
[1754934970423,5.99660053,178.44,178.42,0.75]
[1754934971331,5.99660053,178.44,178.42,90.65]
[1754934973530,5.99660053,178.44,178.43,0.69]
[1754934975712,5.99660053,178.45,178.43,0.69]
[1754934975955,5.99660053,178.46,178.44,0.69]
[1754934976237,5.99660053,178.45,178.43,39.96]
[1754934976433,5.99660053,178.44,178.43,39.96]
[1754934976642,5.99660053,178.45,178.43,39.96]
[1754934977136,5.99660053,178.45,178.43,129.86]
[1754934977644,5.99660053,178.45,178.43,130.55]
[1754934978811,5.99660053,178.45,178.44,0.69]
[1754934979214,5.99660053,178.46,178.44,0.69]
[1754934979413,5.99660053,178.45,178.43,129.86]
[1754934979607,5.99660053,178.44,178.43,130.55]
[1754934979835,17.63821919,178.47,178.43,130.55]
[1754934980010,17.63821919,178.47,178.44,0.69]
[1754934980216,17.63821919,178.47,178.45,39.96]
[1754934980534,17.63821919,178.47,178.46,0.69]
[1754934980738,29.23800356,178.47,178.45,39.96]
[1754934981241,29.23800356,178.47,178.45,40.65]
[1754934982543,5.99660053,178.46,178.44,39.96]
[1754934982735,5.99660053,178.46,178.44,40.65]
[1754934982925,5.99660053,178.46,178.44,39.96]
[1754934983121,23.24140303,178.47,178.44,129.84]
[1754934983326,23.63481972,178.47,178.45,0.69]
[1754934984060,17.63821919,178.47,178.46,0.69]
[1754934984540,23.63481972,178.47,178.44,130.53]
[1754934984918,23.63481972,178.47,178.45,0.69]
[1754934985258,29.23801548,178.47,178.45,0.69]
[1754934985617,5.99660053,178.46,178.45,0.69]
[1754934985838,5.99660053,178.46,178.44,89.9]
[1754934986018,5.99660053,178.45,178.44,89.9]
[1754934986340,6.31373197,178.46,178.44,89.9]
[1754934986525,17.63821919,178.47,178.45,40.63]
[1754934986723,17.63821919,178.47,178.45,46.62660053]
[1754934987036,17.63821919,178.47,178.46,0.69]
[1754934987938,17.63821919,178.47,178.46,96.58660053]
[1754934988435,0.03,178.47,178.46,96.58660053]
[1754934988817,0.03,178.47,178.46,102.19009711]
[1754934991037,0.03,178.48,178.47,89.87]
[1754934991252,0.03,178.48,178.47,136.49660053]
[1754934992246,0.03,178.48,178.47,142.09978313]
[1754934994831,0.03,178.48,178.47,136.49660053]
[1754934995350,0.03,178.48,178.47,142.09978313]
[1754934998034,0.03,178.48,178.47,96.55660053]
[1754934998238,0.03,178.48,178.47,129.79]
[1754934999357,0.03,178.48,178.46,89.87]
[1754934999535,6.68660053,178.47,178.46,89.87]
[1754934999935,6.68660053,178.47,178.46,129.79]
[1754935000240,5.99660053,178.47,178.46,129.79]
[1754935001038,0.03,178.48,178.46,129.79]
[1754935001449,0.03,178.48,178.47,0.67]
[1754935001962,0.03,178.48,178.46,129.79]
[1754935002254,0.03,178.48,178.46,130.46]
[1754935002436,0.03,178.48,178.46,129.79]
[1754935002634,6.02660053,178.48,178.46,129.79]
[1754935004562,0.03,178.48,178.46,129.79]
[1754935004863,6.02660053,178.48,178.46,130.46]
[1754935005244,6.02660053,178.48,178.46,129.79]
[1754935005633,0.03,178.48,178.46,129.79]
[1754935005849,6.02660053,178.48,178.46,129.79]
[1754935006437,6.68660053,178.47,178.46,129.79]
[1754935006636,5.99660053,178.47,178.46,129.79]
[1754935007948,6.02660053,178.48,178.46,130.46]
[1754935008140,6.02660053,178.48,178.46,129.79]
[1754935008546,6.02660053,178.48,178.46,130.46]
[1754935011368,0.03,178.48,178.47,0.67]
[1754935011770,6.02660053,178.48,178.46,129.79]
[1754935011951,5.99660053,178.47,178.46,129.79]
[1754935012544,6.02660053,178.48,178.46,129.79]
[1754935013574,0.03,178.48,178.47,0.67]
[1754935013757,6.02660053,178.48,178.47,0.67]
[1754935013956,0.03,178.48,178.47,0.67]
[1754935015565,0.03,178.5,178.49,89.81]
[1754935015862,0.03,178.5,178.49,129.71]
[1754935016258,0.03,178.5,178.49,130.38]
[1754935017443,6.02660053,178.5,178.49,129.71]
[1754935020678,0.03,178.5,178.49,130.38]
[1754935022458,6.71660053,178.5,178.49,89.81]
[1754935023571,12.31884142,178.5,178.49,89.81]
[1754935026153,5.63224089,178.5,178.49,89.81]
[1754935026347,11.62884142,178.5,178.49,89.81]
[1754935028792,0.03,178.5,178.49,90.46]
[1754935029079,0.03,178.5,178.49,130.34]
[1754935030479,0.03,178.5,178.49,136.33660053]
[1754935030681,0.03,178.5,178.49,141.93915529]
[1754935033082,0.03,178.51,178.5,95.38224089]
[1754935033281,0.03,178.51,178.5,102.02884142]
[1754935035668,0.03,178.51,178.5,90.43]
[1754935035981,0.03,178.51,178.5,129.64]
[1754935036280,6.02660053,178.51,178.5,129.64]
[1754935036881,0.03,178.51,178.5,129.64]
[1754935037577,0.03,178.51,178.5,130.29]
[1754935039681,0.03,178.51,178.5,136.28660053]
[1754935040794,0.03,178.51,178.5,141.88884142]
[1754935041163,0.03,178.53,178.52,89.72]
[1754935041363,0.03,178.53,178.52,135.55660053]
[1754935041566,0.03,178.53,178.52,136.20660053]
[1754935043763,0.03,178.53,178.52,141.80821379]
[1754935044270,0.03,178.53,178.52,136.20660053]
[1754935044791,0.03,178.53,178.52,130.21]
[1754935044985,0.03,178.53,178.52,136.20660053]
[1754935046282,0.03,178.53,178.52,130.21]
[1754935046778,0.03,178.53,178.52,136.20660053]
[1754935047170,0.03,178.53,178.52,141.80821379]
[1754935047895,0.03,178.53,178.52,135.81161326]
[1754935048098,0.03,178.53,178.52,141.80821379]
[1754935048293,0.03,178.53,178.52,136.20660053]
[1754935048692,0.03,178.53,178.52,141.80821379]
[1754935048888,0.03,178.53,178.52,136.20660053]
[1754935049881,0.03,178.53,178.52,130.21]
[1754935050190,0.03,178.53,178.52,136.20660053]
[1754935050977,0.03,178.53,178.52,141.80821379]
[1754935051202,0.03,178.57,178.56,89.6]
[1754935051501,0.03,178.57,178.56,136.06660053]
[1754935051704,0.03,178.57,178.56,130.07]
[1754935052181,0.03,178.57,178.56,129.42]
[1754935054606,0.72,178.57,178.56,129.42]
[1754935054778,0.03,178.57,178.56,129.42]
[1754935056491,0.03,178.57,178.54,0.68]
[1754935056691,5.99660053,178.55,178.53,96.506601]
[1754935056905,5.99660053,178.55,178.54,39.8]
[1754935057205,5.99660053,178.55,178.54,39.86]
[1754935057580,5.99660053,178.56,178.54,39.86]
[1754935059193,5.99660053,178.56,178.54,40.54]
[1754935059697,5.99660053,178.56,178.54,39.86]
[1754935062807,6.02660053,178.57,178.54,39.86]
[1754935062989,6.02660053,178.57,178.55,0.68]
[1754935064990,6.02660053,178.57,178.56,39.8]
[1754935065600,0.03,178.57,178.56,39.8]
[1754935065911,0.03,178.57,178.56,130.08]
[1754935066710,0.03,178.57,178.56,129.4]
[1754935067098,6.02660053,178.57,178.56,129.4]
[1754935067494,6.71660053,178.57,178.56,89.6]
[1754935067697,6.02660053,178.57,178.56,89.6]
[1754935067901,6.71660053,178.57,178.56,89.6]
[1754935068390,12.31664533,178.57,178.56,89.6]
[1754935071108,15.10621557,178.56,178.54,0.06]
[1754935071296,15.10621557,178.54,178.5,89.66]
[1754935071503,5.99660053,178.51,178.5,89.66]
[1754935072094,11.59852759,178.51,178.5,89.66]
[1754935072513,12.28852759,178.51,178.5,89.66]
[1754935073495,18.28512812,178.51,178.5,89.66]
[1754935073791,12.28852759,178.51,178.5,89.66]
[1754935074007,11.59852759,178.51,178.5,89.66]
[1754935075499,11.59852759,178.51,178.5,90.34]
[1754935075696,11.59852759,178.51,178.5,89.66]
[1754935077012,5.99660053,178.51,178.5,90.34]
[1754935078420,5.99660053,178.51,178.5,89.66]
[1754935078811,5.99660053,178.51,178.5,129.44]
[1754935079019,5.99660053,178.51,178.5,89.66]
[1754935079223,5.99660053,178.51,178.5,130.12]
[1754935081804,11.59852759,178.51,178.5,129.44]
[1754935082400,11.59852759,178.51,178.5,89.66]
[1754935082596,12.25852759,178.51,178.5,89.66]
[1754935082799,11.59852759,178.51,178.5,89.66]